bitfinex/quotes_SOLUSD_20250908
["timestamp","ask_amount","ask_price","bid_price","bid_amount"]
[1757311099004,0.1,207.55,207.54,154.36867173]
[1757311101181,0.1,207.55,207.54,116.74867173]
[1757311107785,0.1,207.62,207.58,39.59559401]
[1757311107986,0.67,207.61,207.59,3.7646945]
[1757311108308,0.67,207.61,207.6,3.7646945]
[1757311108603,0.1,207.62,207.6,3.7646945]
[1757311109315,0.67,207.61,207.6,3.7646945]
[1757311109608,0.67,207.61,207.6,14.46724375]
[1757311110115,0.67,207.61,207.6,102.27724418]
[1757311110403,0.1,207.62,207.61,13.59559401]
[1757311110608,0.77,207.62,207.61,17.36028851]
[1757311111395,0.77,207.62,207.61,80.09999999]
[1757311113409,0.77,207.62,207.61,84.91554347]
[1757311115897,0.77,207.62,207.61,4.81554348]
[1757311116412,4.5346945,207.62,207.61,4.09554348]
[1757311116612,4.5346945,207.62,207.55,18.41371012]
[1757311116913,41.3646945,207.61,207.55,22.17840462]
[1757311117098,0.68,207.6,207.55,22.17840462]
[1757311117305,0.68,207.59,207.55,22.17840462]
[1757311117498,0.68,207.58,207.55,22.17840462]
[1757311118497,0.68,207.57,207.54,18.23472947]
[1757311119305,0.68,207.57,207.54,3.7646945]
[1757311119617,0.68,207.57,207.54,18.23542745]
[1757311119795,0.68,207.57,207.54,14.47073295]
[1757311120003,0.68,207.57,207.54,19.28907779]
[1757311120514,0.68,207.57,207.54,4.81834484]
[1757311120699,0.68,207.57,207.54,19.28907778]
[1757311121410,0.68,207.57,207.54,23.05377228]
[1757311121606,0.68,207.57,207.54,23.76377228]
[1757311123795,0.68,207.57,207.54,9.29303934]
[1757311124118,0.68,207.56,207.55,26.0]
[1757311124995,0.68,207.56,207.53,14.47073294]
[1757311125198,4.81721711,207.59,207.53,14.47073294]
[1757311125199,0.68,207.55,207.53,14.47073294]
[1757311125392,0.68,207.55,207.52,4.81868359]
[1757311125588,0.68,207.54,207.51,97.4602885]
[1757311125794,0.68,207.54,207.52,4.81721711]
[1757311126009,0.68,207.55,207.52,4.81721711]
[1757311126516,0.68,207.55,207.51,101.63413252]
[1757311126911,0.68,207.55,207.51,106.45133136]
[1757311127813,0.68,207.54,207.51,103.33183008]
[1757311128311,0.68,207.54,207.51,104.04183008]
[1757311128520,0.68,207.54,207.51,103.33183008]
[1757311128820,0.68,207.53,207.51,84.91719883]
[1757311129032,0.68,207.54,207.51,80.09999999]
[1757311129194,0.68,207.53,207.51,80.09999999]
[1757311129620,0.68,207.55,207.51,80.09999999]
[1757311129920,0.68,207.54,207.51,80.09999999]
[1757311130521,4.817175,207.6,207.51,85.62898525]
[1757311130694,2.40950128,207.57,207.51,7.93848654]
[1757311130898,2.40950128,207.57,207.51,7.22848654]
[1757311131102,2.40950128,207.57,207.52,0.71]
[1757311131304,3.08950128,207.57,207.53,0.71]
[1757311131602,0.68,207.56,207.53,0.71]
[1757311132121,0.68,207.56,207.52,5.52881155]
[1757311132296,0.68,207.56,207.52,7.93831283]
[1757311133102,0.68,207.56,207.52,5.52881155]
[1757311133603,0.68,207.56,207.53,0.71]
[1757311133926,39.34950128,207.57,207.53,0.71]
[1757311134129,40.02950128,207.57,207.53,0.71]
[1757311135120,0.68,207.56,207.52,4.81881155]
[1757311135425,0.68,207.56,207.52,5.52881155]
[1757311135928,39.34950128,207.57,207.52,5.52881155]
[1757311136111,0.68,207.55,207.52,5.52881155]
[1757311136523,36.94,207.57,207.52,4.81881155]
[1757311136699,3.08950128,207.56,207.52,5.52881155]
[1757311137121,0.68,207.55,207.52,5.52881155]
[1757311137298,3.08950128,207.55,207.51,84.91697435]
[1757311137500,0.68,207.55,207.51,85.62697435]
[1757311137705,0.68,207.55,207.51,85.62904168]
[1757311137906,0.68,207.55,207.51,84.91904168]
[1757311138121,14.47352551,207.6,207.54,2.40950128]
[1757311138326,36.98,207.57,207.54,2.40950128]
[1757311138517,36.98,207.57,207.55,0.71]
[1757311139324,36.98,207.58,207.56,0.71]
[1757311140132,36.98,207.58,207.56,5.52779686]
[1757311140918,36.98,207.58,207.56,0.71]
[1757311141132,36.98,207.58,207.54,33.93784543]
[1757311141429,0.68,207.58,207.55,0.71]
[1757311141802,0.68,207.57,207.55,26.0]
[1757311142327,37.0,207.57,207.55,26.0]
[1757311142529,37.0,207.57,207.55,0.71]
[1757311143627,37.0,207.57,207.54,30.81834027]
[1757311144007,37.0,207.57,207.54,31.52834027]
[1757311144823,37.68,207.57,207.55,26.0]
[1757311145023,0.68,207.56,207.55,26.0]
[1757311145332,39.40950128,207.57,207.55,26.0]
[1757311145552,0.68,207.56,207.53,18.41417445]
[1757311146030,37.0,207.57,207.54,0.65]
[1757311146214,37.0,207.57,207.53,18.41417445]
[1757311146215,0.68,207.56,207.53,13.59559401]
[1757311146413,0.68,207.55,207.52,80.09999999]
[1757311146613,2.40950128,207.56,207.52,80.09999999]
[1757311146614,0.68,207.54,207.52,80.09999999]
[1757311146824,0.68,207.56,207.52,80.09999999]
[1757311147030,37.0,207.57,207.53,0.65]
[1757311147606,37.0,207.56,207.53,3.05950128]
[1757311147808,37.0,207.56,207.54,0.65]
[1757311148006,0.68,207.55,207.52,80.09999999]
[1757311148243,3.08950128,207.55,207.52,80.09999999]
[1757311148416,0.68,207.54,207.52,80.09999999]
[1757311148924,40.08950128,207.56,207.52,80.09999999]
[1757311149123,0.68,207.55,207.52,80.09999999]
[1757311150011,0.68,207.54,207.52,80.09999999]
[1757311150553,40.08950128,207.56,207.52,80.09999999]
[1757311150724,0.68,207.55,207.52,84.91878375]
[1757311151442,0.68,207.55,207.52,4.81878376]
[1757311151829,0.68,207.55,207.51,4.81904463]
[1757311152232,0.68,207.55,207.51,5.46904463]
[1757311153538,0.68,207.55,207.51,0.65]
[1757311153932,0.68,207.55,207.51,5.4690326]
[1757311154730,0.68,207.55,207.52,0.65]
[1757311155117,0.68,207.55,207.5,4.8192771]
[1757311155347,0.68,207.55,207.51,3.05950128]
[1757311156844,0.68,207.55,207.51,5.46904255]
[1757311157541,0.68,207.55,207.51,0.65]
[1757311157733,0.68,207.54,207.5,2.40950128]
[1757311157915,0.68,207.54,207.5,3.05950128]
[1757311158115,0.68,207.54,207.51,0.65]
[1757311159039,40.08950128,207.56,207.51,0.65]
[1757311159245,0.68,207.55,207.51,0.65]
[1757311160044,39.40950128,207.56,207.49,49.88410925]
[1757311160341,0.68,207.54,207.5,3.05950128]
[1757311160533,0.68,207.54,207.51,0.65]
[1757311161742,0.68,207.53,207.49,29.05950128]
[1757311161948,36.96,207.52,207.49,29.05950128]
[1757311162241,36.96,207.52,207.49,28.40950128]
[1757311162445,36.96,207.52,207.5,0.65]
[1757311164030,36.96,207.52,207.51,0.65]
[1757311165524,36.96,207.52,207.5,4.81916442]
[1757311165739,36.96,207.52,207.5,5.46916442]
[1757311166834,36.96,207.52,207.49,33.87898325]
[1757311167033,36.96,207.52,207.5,0.65]
[1757311168345,36.96,207.52,207.49,33.22898325]
[1757311168555,36.96,207.52,207.49,33.87898325]
[1757311168752,36.96,207.52,207.5,0.65]
[1757311170453,36.96,207.52,207.5,5.46927189]
[1757311172147,36.94,207.52,207.51,3.05950128]
[1757311174357,36.94,207.52,207.51,7.87854614]
[1757311175654,36.94,207.52,207.51,7.22854614]
[1757311175861,36.94,207.52,207.5,7.22877838]
[1757311176059,36.94,207.52,207.5,7.90877838]
[1757311176657,36.94,207.52,207.5,5.4992771]
[1757311176833,36.94,207.52,207.5,7.90877838]
[1757311182851,36.94,207.52,207.5,5.4992771]
[1757311183358,36.94,207.52,207.5,7.90877838]
[1757311184262,0.69,207.51,207.5,7.22877838]
[1757311184966,37.63,207.52,207.5,7.22877838]
[1757311185450,37.63,207.52,207.5,4.8192771]
[1757311186364,0.69,207.52,207.5,4.8192771]
[1757311186565,36.92,207.52,207.51,0.68]
[1757311187067,0.69,207.55,207.51,0.68]
[1757311187269,36.92,207.53,207.51,4.44545079]
[1757311188083,36.92,207.53,207.51,9.26433473]
[1757311188669,36.92,207.53,207.51,5.49888394]
[1757311190164,36.92,207.53,207.51,4.81888394]
[1757311190483,37.61,207.53,207.51,4.81888394]
[1757311191173,0.69,207.52,207.49,34.58478873]
[1757311191862,0.69,207.52,207.49,35.26478873]
[1757311192065,0.69,207.52,207.5,3.76545079]
[1757311192267,0.69,207.52,207.49,35.26478873]
[1757311194681,36.92,207.53,207.49,30.81933794]
[1757311194881,0.69,207.51,207.49,26.0]
[1757311195278,0.69,207.51,207.49,29.76545079]
[1757311196286,0.69,207.51,207.49,34.58495929]
[1757311198197,0.69,207.52,207.49,34.58495929]
[1757311198492,36.92,207.51,207.49,34.58495929]
[1757311200582,0.69,207.54,207.5,4.44545079]
[1757311200773,36.92,207.53,207.51,4.44545079]
[1757311200973,37.61,207.53,207.5,3.76545079]
[1757311201293,36.92,207.52,207.5,3.76545079]
[1757311201607,0.69,207.55,207.51,3.76545079]
[1757311202099,0.69,207.55,207.53,17.3610448]
[1757311202267,0.69,207.55,207.52,26.68]
[1757311202268,28.18539807,207.57,207.55,26.0]
[1757311202475,65.10539807,207.57,207.56,4.44545079]
[1757311202771,65.10539807,207.57,207.53,26.0]
[1757311202772,0.69,207.56,207.53,26.0]
[1757311202984,0.69,207.55,207.54,26.0]
[1757311203374,65.79539807,207.57,207.54,29.76545079]
[1757311204874,28.87539807,207.57,207.54,34.58371726]
[1757311205077,36.94,207.56,207.54,35.26371726]
[1757311205297,28.18539807,207.57,207.55,3.76545079]
[1757311205479,28.18539807,207.57,207.56,4.45545079]
[1757311206100,28.18539807,207.57,207.56,18.0510448]
[1757311206707,28.18539807,207.57,207.56,22.86892878]
[1757311207005,2.95964462,207.57,207.56,37.33687023]
[1757311207306,17.52,207.62,207.59,26.0]
[1757311207600,17.52,207.62,207.61,3.76545079]
[1757311207781,0.1,207.62,207.61,4.45545079]
[1757311208405,0.1,207.62,207.61,18.0510448]
[1757311208697,0.1,207.62,207.61,22.86776846]
[1757311213612,0.1,207.62,207.61,37.3329195]
[1757311213781,0.1,207.62,207.61,117.43291949]
[1757311216292,0.1,207.62,207.61,116.74291949]
[1757311216494,0.1,207.62,207.61,117.43291949]
[1757311221800,1e-08,207.62,207.61,117.43291949]
[1757311222814,1e-08,207.64,207.63,18.4118537]
[1757311222990,36.92,207.71,207.63,18.4118537]
[1757311222991,36.92,207.71,207.69,39.59559401]
[1757311223185,36.92,207.71,207.69,44.0510448]
[1757311223489,37.6,207.75,207.69,44.0510448]
[1757311223701,37.6,207.75,207.69,47.81649559]
[1757311224206,8.71525828,207.7,207.69,47.81649559]
[1757311224404,23.7,207.78,207.74,13.59559401]
[1757311224603,23.02,207.78,207.77,3.76545079]
[1757311224782,23.02,207.78,207.76,3.76545079]
[1757311224986,23.02,207.78,207.73,26.0]
[1757311225202,0.68,207.77,207.75,3.76545079]
[1757311225399,0.68,207.76,207.73,30.81390108]
[1757311225595,0.68,207.76,207.75,3.76545079]
[1757311225782,0.68,207.75,207.73,26.0]
[1757311225983,0.68,207.75,207.73,30.81391638]
[1757311226284,0.68,207.75,207.73,45.27139934]
[1757311226992,0.68,207.75,207.74,3.76545079]
[1757311227404,0.68,207.77,207.74,3.76545079]
[1757311227600,23.02,207.78,207.76,3.76545079]
[1757311227800,23.02,207.78,207.75,13.59559401]
[1757311228106,23.02,207.78,207.77,3.76545079]
[1757311228313,23.7,207.78,207.77,3.76545079]
[1757311230320,23.7,207.78,207.75,18.40898288]
[1757311230503,23.02,207.78,207.76,3.76545079]
[1757311231118,0.68,207.77,207.76,3.76545079]
[1757311232307,0.68,207.77,207.74,3.76545079]
[1757311232500,0.68,207.76,207.74,3.76545079]
[1757311232706,0.68,207.75,207.74,29.76545079]
[1757311233514,23.02,207.78,207.75,26.0]
[1757311233729,0.68,207.77,207.75,26.0]
[1757311233930,0.68,207.76,207.75,26.0]
[1757311235107,0.68,207.76,207.75,29.76545079]
[1757311236429,0.68,207.76,207.72,94.55748294]
[1757311236628,0.68,207.76,207.7,3.76545079]
[1757311236629,0.68,207.75,207.7,3.76545079]
[1757311236822,0.68,207.74,207.7,3.76545079]
[1757311237005,37.66,207.73,207.7,3.76545079]
[1757311237211,0.68,207.72,207.7,3.76545079]
[1757311237716,36.98,207.73,207.7,3.76545079]
[1757311237922,0.68,207.72,207.7,3.76545079]
[1757311238230,36.98,207.73,207.7,3.76545079]
[1757311238410,37.66,207.73,207.7,3.76545079]
[1757311238611,0.68,207.72,207.7,3.76545079]
[1757311238819,36.98,207.73,207.67,40.4602704]
[1757311239013,0.68,207.71,207.67,17.3610448]
[1757311239221,40.74545079,207.73,207.67,17.3610448]
[1757311239222,0.68,207.7,207.67,3.76545079]
[1757311239749,4.44545079,207.69,207.65,14.46166454]
[1757311240038,41.42545079,207.68,207.62,17.3610448]
[1757311240241,46.2408381,207.67,207.61,18.22711533]
[1757311240437,3.76545079,207.64,207.58,3.76545079]
[1757311240735,4.44545079,207.63,207.57,117.08586958]
[1757311240909,0.68,207.62,207.57,117.08586958]
[1757311241233,37.66,207.61,207.57,102.61792813]
[1757311241610,37.66,207.61,207.58,3.76545079]
[1757311241812,0.68,207.61,207.58,3.76545079]
[1757311242014,0.68,207.66,207.6,17.3610448]
[1757311242212,36.98,207.65,207.62,3.76545079]
[1757311243013,36.98,207.65,207.63,3.76545079]
[1757311243532,36.98,207.65,207.62,3.76545079]
[1757311243737,0.68,207.64,207.61,3.76545079]
[1757311243923,0.68,207.63,207.59,29.76545079]
[1757311244119,0.68,207.62,207.59,29.76545079]
[1757311244345,0.68,207.62,207.59,44.2319969]
[1757311244646,0.68,207.62,207.59,29.76545079]
[1757311245141,0.68,207.64,207.6,3.76545079]
[1757311245315,0.68,207.63,207.59,30.47545079]
[1757311245514,0.68,207.63,207.6,3.76545079]
[1757311246136,14.46794145,207.71,207.61,3.76545079]
[1757311246316,0.68,207.68,207.63,2.40673195]
[1757311246533,2.40673195,207.69,207.63,2.40673195]
[1757311246534,0.68,207.67,207.63,3.11673195]
[1757311246838,36.98,207.66,207.63,3.11673195]
[1757311247519,37.66,207.66,207.63,2.40673195]
[1757311247942,37.66,207.66,207.62,7.22313377]
[1757311248237,37.66,207.66,207.62,7.93313377]
[1757311252651,37.66,207.66,207.62,3.11673195]
[1757311253016,37.66,207.66,207.62,7.93318141]
[1757311253217,36.98,207.66,207.63,3.11673195]
[1757311253438,0.68,207.68,207.63,2.40673195]
[1757311253646,36.96,207.67,207.64,3.11673195]
[1757311254040,36.96,207.66,207.64,2.40673195]
[1757311254545,0.68,207.67,207.64,2.40673195]
[1757311254726,36.96,207.66,207.64,2.40673195]
[1757311255838,0.68,207.67,207.64,2.40673195]
[1757311256042,36.96,207.66,207.64,2.40673195]
[1757311256649,0.68,207.67,207.64,2.40673195]
[1757311256945,36.94,207.66,207.64,2.40673195]
[1757311259456,0.68,207.7,207.65,3.11673195]
[1757311259636,36.94,207.69,207.68,2.40673195]
[1757311260128,0.68,207.72,207.68,3.11673195]
[1757311260327,36.94,207.71,207.69,2.40673195]
[1757311260530,37.62,207.71,207.69,2.40673195]
[1757311262939,37.62,207.71,207.68,2.40673195]
[1757311263139,37.62,207.71,207.66,14.46166453]
[1757311263140,0.68,207.7,207.66,14.46166453]
[1757311263341,3.08673195,207.69,207.64,2.40673195]
[1757311263651,0.68,207.68,207.63,2.40673195]
[1757311263844,2.40673195,207.65,207.61,14.46515104]
[1757311264050,40.04673195,207.64,207.58,2.40673195]
[1757311264235,0.68,207.63,207.59,2.40673195]
[1757311264552,0.68,207.62,207.59,2.40673195]
[1757311264846,37.64,207.64,207.6,2.40673195]
[1757311265054,37.64,207.64,207.61,2.40673195]
[1757311265350,37.68,207.64,207.6,2.40673195]
[1757311265738,37.68,207.64,207.62,0.03]
[1757311266640,0.72,207.63,207.62,0.03]
[1757311267531,3.12673195,207.63,207.62,0.03]
[1757311268154,7.94299164,207.63,207.62,0.03]
[1757311270363,7.94299164,207.63,207.57,0.03]
[1757311270364,26.0,207.6,207.57,0.03]
[1757311270550,26.0,207.6,207.54,0.03]
[1757311270551,2.40673195,207.58,207.54,0.03]
[1757311270859,2.40673195,207.55,207.54,0.03]
[1757311271155,39.42673195,207.55,207.54,0.03]
[1757311271334,40.14673195,207.55,207.54,0.03]
[1757311272233,44.96484806,207.55,207.54,0.03]
[1757311274168,59.59559401,207.52,207.46,0.03]
[1757311274337,12.03365975,207.5,207.46,0.03]
[1757311274536,2.40673195,207.47,207.46,0.03]
[1757311274841,39.58673195,207.47,207.46,0.03]
[1757311275156,40.30673195,207.47,207.46,0.03]
[1757311276668,45.12670592,207.47,207.46,0.03]
[1757311281154,26.0,207.45,207.44,0.03]
[1757311281364,70.4071706,207.45,207.44,0.03]
[1757311281544,71.1271706,207.45,207.44,0.03]
[1757311281751,83.17826724,207.45,207.38,0.2]
[1757311281972,2.40673195,207.41,207.38,0.2]
[1757311282348,3.12673195,207.41,207.38,0.2]
[1757311282535,40.30673195,207.41,207.38,0.2]
[1757311283559,2.40673195,207.41,207.4,0.03]
[1757311283860,39.58673195,207.41,207.4,0.03]
[1757311285039,26.0,207.45,207.4,0.74]
[1757311285240,22.05966568,207.46,207.4,0.74]
[1757311285461,2.40673195,207.45,207.4,0.74]
[1757311285686,22.05966568,207.46,207.4,0.74]
[1757311285687,37.2,207.44,207.41,2.40673195]
[1757311285858,22.05966568,207.46,207.42,0.71]
[1757311286054,22.05966568,207.46,207.42,3.11673195]
[1757311286250,37.2,207.45,207.43,3.11673195]
[1757311286560,59.27966568,207.46,207.44,3.11673195]
[1757311286769,59.27966568,207.46,207.45,3.11673195]
[1757311287068,59.27966568,207.46,207.45,0.71]
[1757311287658,59.27966568,207.46,207.45,5.53043865]
[1757311288172,59.27966568,207.46,207.45,7.9371706]
[1757311288350,59.27966568,207.46,207.45,3.11673195]
[1757311289272,59.27966568,207.46,207.45,0.71]
[1757311290965,59.27966568,207.46,207.43,0.71]
[1757311291840,59.27966568,207.46,207.44,0.71]
[1757311292662,59.27966568,207.46,207.45,2.40673195]
[1757311292973,59.27966568,207.46,207.45,3.11673195]
[1757311293466,59.27966568,207.46,207.45,2.40673195]
[1757311293672,59.27966568,207.46,207.44,2.40673195]
[1757311294464,59.27966568,207.46,207.44,3.11673195]
[1757311294674,59.27966568,207.46,207.44,2.40673195]
[1757311295273,59.27966568,207.46,207.42,5.53106397]
[1757311295473,59.27966568,207.46,207.43,3.10673195]
[1757311296474,59.27966568,207.46,207.43,2.40673195]
[1757311296674,59.27966568,207.46,207.44,3.10673195]
[1757311296972,59.27966568,207.46,207.4,26.03]
[1757311296973,22.05966568,207.46,207.45,3.10673195]
[1757311297173,59.27966568,207.46,207.45,3.10673195]
[1757311298862,59.27966568,207.46,207.43,30.82088928]
[1757311299072,59.27966568,207.46,207.44,2.40673195]
[1757311299978,59.27966568,207.46,207.43,3.10673195]
[1757311300284,59.27966568,207.46,207.44,3.10673195]
[1757311301481,59.27966568,207.46,207.45,3.10673195]
[1757311301781,22.05966568,207.46,207.45,3.10673195]
[1757311301965,59.23966568,207.46,207.45,29.10673195]
[1757311303785,59.23966568,207.46,207.45,33.9271706]
[1757311303973,59.29966568,207.46,207.45,33.9271706]
[1757311304373,59.29966568,207.46,207.45,28.40673195]
[1757311304581,59.29966568,207.46,207.45,29.10673195]
[1757311305082,59.97966568,207.46,207.44,0.03]
[1757311305296,0.68,207.45,207.44,0.03]
[1757311305793,59.29966568,207.46,207.44,0.03]
[1757311305992,59.97966568,207.46,207.44,0.03]
[1757311306178,37.2,207.45,207.44,0.03]
[1757311306374,37.2,207.45,207.44,3.79765553]
[1757311307486,22.11966568,207.46,207.44,9.31832656]
[1757311307696,22.11966568,207.46,207.45,4.46765553]
[1757311307881,59.31966568,207.46,207.45,4.46765553]
[1757311308279,22.11966568,207.46,207.45,4.46765553]
[1757311308479,59.33966568,207.46,207.45,4.46765553]
[1757311310078,59.31966568,207.46,207.45,9.28809418]
[1757311312275,22.11966568,207.46,207.45,9.28809418]
[1757311312494,59.31966568,207.46,207.45,9.28809418]
[1757311313392,59.31966568,207.46,207.45,22.88368819]
[1757311315092,59.31966568,207.46,207.45,8.58809418]
[1757311317389,59.31966568,207.46,207.45,9.28809418]
[1757311318009,59.31966568,207.46,207.45,8.58809418]
[1757311318211,59.31966568,207.46,207.45,29.76765553]
[1757311320005,59.31966568,207.46,207.45,34.58809418]
[1757311321814,59.31966568,207.46,207.45,35.28809418]
[1757311321984,59.31966568,207.46,207.45,34.58809418]
[1757311323400,59.31966568,207.46,207.45,35.28809418]
[1757311323602,59.31966568,207.46,207.45,34.58809418]
[1757311325607,22.11966568,207.46,207.45,48.86368819]
[1757311325803,37.2,207.49,207.48,26.0]
[1757311326002,37.2,207.49,207.48,30.44765553]
[1757311327109,37.2,207.49,207.48,29.76765553]
[1757311327306,37.2,207.49,207.48,34.58739719]
[1757311327612,37.88,207.49,207.45,80.1]
[1757311327911,0.68,207.48,207.45,83.86765553]
[1757311328103,37.82,207.47,207.45,83.86765553]
[1757311328709,0.68,207.46,207.45,83.86765553]
[1757311328908,37.14,207.47,207.45,83.86765553]
[1757311329109,37.82,207.47,207.45,83.86765553]
[1757311329492,37.82,207.47,207.45,3.76765553]
[1757311330097,37.14,207.47,207.46,3.76765553]
[1757311331116,37.14,207.47,207.45,34.58804686]
[1757311331513,0.68,207.46,207.44,0.03]
[1757311331814,37.14,207.45,207.44,0.03]
[1757311331995,37.82,207.45,207.44,0.03]
[1757311332715,37.14,207.45,207.44,0.03]
[1757311333415,37.82,207.45,207.44,0.03]
[1757311335399,37.14,207.45,207.44,0.03]
[1757311335593,0.68,207.47,207.44,0.03]
[1757311335809,0.06,207.49,207.46,3.76765553]
[1757311336022,37.16,207.48,207.46,3.76765553]
[1757311336598,37.16,207.48,207.45,3.76765553]
[1757311336799,37.84,207.48,207.45,3.76765553]
[1757311338118,0.68,207.47,207.44,34.618182]
[1757311338317,37.18,207.46,207.45,3.76765553]
[1757311339198,37.18,207.46,207.44,29.79765553]
[1757311339401,37.86,207.46,207.44,29.79765553]
[1757311339617,37.86,207.46,207.44,26.03]
[1757311340014,37.18,207.46,207.44,26.03]
[1757311340211,37.18,207.46,207.44,30.85063897]
[1757311340705,37.18,207.46,207.44,26.03]
[1757311340911,37.86,207.46,207.44,26.03]
[1757311341217,37.16,207.45,207.44,3.79765553]
[1757311341424,37.16,207.45,207.44,29.79765553]
[1757311342432,37.14,207.45,207.44,29.79765553]
[1757311342808,37.14,207.45,207.44,0.03]
[1757311343825,37.82,207.45,207.44,0.03]
[1757311344424,37.14,207.45,207.44,0.03]
[1757311344929,37.14,207.45,207.44,8.61832656]
[1757311346339,37.14,207.45,207.44,9.29832656]
[1757311346718,0.06,207.46,207.45,39.59559401]
[1757311346921,0.06,207.49,207.45,124.14324954]
[1757311347125,1e-08,207.52,207.51,26.0]
[1757311347325,37.88078152,207.57,207.52,13.59559401]
[1757311347530,37.88078152,207.57,207.53,3.76765553]
[1757311347727,37.88078152,207.57,207.53,4.44765553]
[1757311348114,37.88078152,207.57,207.53,0.68]
[1757311348310,0.74,207.54,207.5,3.76765553]
[1757311348625,0.74,207.54,207.52,3.76765553]
[1757311349525,0.06,207.54,207.53,3.76765553]
[1757311349737,37.38,207.54,207.53,3.76765553]
[1757311350221,37.38,207.54,207.53,8.58623597]
[1757311350424,37.38,207.54,207.53,9.26623597]
[1757311351037,37.38,207.54,207.53,8.58623597]
[1757311352341,0.06,207.54,207.53,8.58623597]
[1757311354616,0.06,207.54,207.53,102.96182998]
[1757311361548,1e-08,207.54,207.53,102.96182998]
[1757311361734,37.88078152,207.57,207.56,26.0]
[1757311362044,8.36187514,207.6,207.59,26.0]
[1757311362250,8.36187514,207.6,207.59,29.76765553]
[1757311362544,37.26,207.61,207.59,29.76765553]
[1757311362738,37.26,207.61,207.6,3.76765553]
[1757311362946,37.93,207.61,207.6,8.58461121]
[1757311366147,37.93,207.61,207.59,29.76765553]
[1757311366327,0.67,207.6,207.59,29.76765553]
[1757311367630,0.67,207.6,207.53,84.91842348]
[1757311367849,3.76765553,207.58,207.51,13.59559401]
[1757311368054,37.26,207.57,207.53,3.76765553]
[1757311368269,0.67,207.56,207.54,3.76765553]
[1757311368444,37.26,207.57,207.55,2.40850219]
[1757311368633,37.93,207.57,207.56,2.40850219]
[1757311368954,37.95,207.57,207.56,2.40850219]
[1757311372856,37.95,207.57,207.55,2.40850219]
[1757311373246,37.95,207.57,207.54,33.22684248]
[1757311374956,0.67,207.56,207.52,0.03]
[1757311375158,2.40850219,207.55,207.52,0.03]
[1757311375358,0.67,207.56,207.52,0.03]
[1757311375359,2.40850219,207.53,207.52,0.03]
[1757311375659,39.66850219,207.53,207.49,0.03]
[1757311375865,2.40850219,207.51,207.49,0.03]
[1757311376264,0.67,207.5,207.49,0.03]
[1757311376452,3.07850219,207.5,207.49,0.03]
[1757311377065,0.67,207.5,207.49,0.03]
[1757311377958,3.07850219,207.5,207.49,0.03]
[1757311378459,0.67,207.5,207.49,0.03]
[1757311382969,37.26,207.5,207.49,0.03]
[1757311385470,3.09850219,207.55,207.49,3.10850219]
[1757311385658,37.26,207.54,207.49,3.10850219]
[1757311385973,0.69,207.53,207.49,2.43850219]
[1757311386159,0.69,207.52,207.49,0.03]
[1757311387045,0.69,207.51,207.49,0.03]
[1757311387247,37.26,207.5,207.49,0.03]
[1757311387660,37.95,207.5,207.49,0.03]
[1757311388475,37.26,207.5,207.49,0.03]
[1757311389052,2.40850219,207.53,207.49,0.03]
[1757311389053,2.51694996,207.62,207.49,42.7040962]
[1757311389366,39.70850219,207.61,207.6,2.40850219]
[1757311389568,39.83694996,207.62,207.6,3.07850219]
[1757311389761,37.32,207.62,207.61,3.07850219]
[1757311390070,38.01,207.62,207.56,0.67]
[1757311390269,38.01,207.62,207.6,2.40850219]
[1757311391069,37.32,207.62,207.6,2.40850219]
[1757311391272,38.01,207.62,207.6,2.40850219]